bitfinex/quotes_BTCUSD_20241001
["timestamp","ask_amount","ask_price","bid_price","bid_amount"]
[1727743926810,0.707818,63642.0,63641.0,0.001642]
[1727743927020,0.707818,63642.0,63641.0,0.00709264]
[1727743927228,0.54669,63642.0,63641.0,0.001642]
[1727743927667,0.711818,63642.0,63641.0,0.002642]
[1727743928307,1.11518852,63642.0,63641.0,0.002642]
[1727743928522,1.12218852,63642.0,63641.0,0.002642]
[1727743928953,1.12218852,63642.0,63641.0,0.001642]
[1727743928954,1.11518852,63642.0,63641.0,0.001642]
[1727743929162,1.11818852,63642.0,63641.0,0.001642]
[1727743929809,1.11518852,63642.0,63641.0,0.001642]
[1727743930021,1.11818852,63642.0,63641.0,0.001642]
[1727743930227,1.11618852,63642.0,63641.0,0.001642]
[1727743930433,1.11718852,63642.0,63641.0,0.001642]
[1727743930861,0.96074174,63642.0,63641.0,0.001642]
[1727743931530,0.95874174,63642.0,63641.0,0.001642]
[1727743931806,0.9783675,63642.0,63641.0,0.001642]
[1727743932307,0.9803675,63642.0,63641.0,0.001642]
[1727743932559,0.9783675,63642.0,63641.0,0.001642]
[1727743932815,0.9753675,63642.0,63641.0,0.001642]
[1727743933079,0.9763675,63642.0,63641.0,0.001642]
[1727743933303,0.9793675,63642.0,63641.0,0.001642]
[1727743933554,0.9803675,63642.0,63641.0,0.001642]
[1727743933814,0.9763675,63642.0,63641.0,0.001642]
[1727743934073,1.15181428,63642.0,63641.0,0.001642]
[1727743934582,0.9953675,63642.0,63641.0,0.001642]
[1727743934822,0.9943675,63642.0,63641.0,0.001642]
[1727743935072,0.9773675,63642.0,63641.0,0.001642]
[1727743935315,0.57131576,63642.0,63641.0,0.001642]
[1727743935557,0.57431576,63642.0,63641.0,0.001642]
[1727743936279,0.73344376,63642.0,63641.0,0.00713714]
[1727743936533,0.49561576,63642.0,63641.0,0.3152308]
[1727743937022,0.50361576,63642.0,63641.0,0.32171969]
[1727743937269,0.47799,63642.0,63641.0,0.35322969]
[1727743938265,0.47799,63642.0,63641.0,0.35222969]
[1727743938512,0.47099,63642.0,63641.0,0.35222969]
[1727743938754,0.47099,63642.0,63641.0,0.35422969]
[1727743938982,0.47099,63642.0,63641.0,0.45422969]
[1727743939190,0.47099,63642.0,63641.0,0.47522969]
[1727743939647,0.47199,63642.0,63641.0,0.48722969]
[1727743940100,0.47099,63642.0,63641.0,0.48722969]
[1727743940768,0.47099,63642.0,63641.0,0.50122969]
[1727743940984,0.47099,63642.0,63641.0,0.47522969]
[1727743941215,0.47099,63642.0,63641.0,0.48922969]
[1727743941458,0.47199,63642.0,63641.0,1.31946357]
[1727743941692,0.47199,63642.0,63641.0,1.30546357]
[1727743941958,0.47099,63642.0,63641.0,1.29146357]
[1727743942407,0.47099,63642.0,63641.0,1.30546357]
[1727743942408,0.47199,63642.0,63641.0,1.30546357]
[1727743942628,0.47199,63642.0,63641.0,1.28246357]
[1727743942866,0.47099,63642.0,63641.0,1.28246357]
[1727743943095,0.47199,63642.0,63641.0,1.29646357]
[1727743943319,0.47199,63642.0,63641.0,1.28246357]
[1727743943544,0.47199,63642.0,63641.0,1.29646357]
[1727743943765,0.47199,63642.0,63641.0,1.28246357]
[1727743944246,0.47199,63642.0,63641.0,1.29446357]
[1727743944523,0.47199,63642.0,63641.0,1.28246357]
[1727743944954,0.47099,63642.0,63641.0,1.27646357]
[1727743945356,0.47099,63642.0,63641.0,0.47122969]
[1727743946040,0.47099,63642.0,63641.0,0.45222969]
[1727743946260,0.47099,63642.0,63641.0,0.46122969]
[1727743946466,0.47099,63642.0,63641.0,0.47322969]
[1727743946710,0.47099,63642.0,63641.0,0.46122969]
[1727743946930,0.47099,63642.0,63641.0,0.47522969]
[1727743947150,0.47099,63642.0,63641.0,0.48722969]
[1727743948244,0.47099,63642.0,63641.0,0.49822969]
[1727743948722,0.47099,63642.0,63641.0,0.48722969]
[1727743948936,0.47099,63642.0,63641.0,0.49822969]
[1727743949177,0.47099,63642.0,63641.0,0.48622969]
[1727743949399,0.47099,63642.0,63641.0,0.47522969]
[1727743949619,0.47099,63642.0,63641.0,0.48722969]
[1727743949809,0.47099,63642.0,63641.0,0.48922969]
[1727743950244,0.47099,63642.0,63641.0,0.50322969]
[1727743950669,0.47099,63642.0,63641.0,0.48922969]
[1727743950892,0.47099,63642.0,63641.0,0.50322969]
[1727743951105,0.47099,63642.0,63641.0,0.47522969]
[1727743951343,0.47099,63642.0,63641.0,0.48922969]
[1727743951786,0.47099,63642.0,63641.0,0.47522969]
[1727743952162,0.47099,63642.0,63641.0,0.48922969]
[1727743952544,0.47099,63642.0,63641.0,0.50322969]
[1727743955565,0.47099,63642.0,63641.0,0.8412347]
[1727743956238,0.47099,63642.0,63641.0,0.8272347]
[1727743956666,0.47099,63642.0,63641.0,0.8412347]
[1727743956873,0.47099,63642.0,63641.0,0.8272347]
[1727743957088,0.47099,63642.0,63641.0,0.8412347]
[1727743957335,0.47099,63642.0,63641.0,0.8272347]
[1727743957554,0.47099,63642.0,63641.0,0.68067042]
[1727743957762,0.47099,63642.0,63641.0,0.66667042]
[1727743958007,0.47099,63642.0,63641.0,0.68067042]
[1727743958430,0.47099,63642.0,63641.0,0.66667042]
[1727743958864,0.47099,63642.0,63641.0,0.69467042]
[1727743959275,0.47099,63642.0,63641.0,0.68067042]
[1727743959956,0.47099,63642.0,63641.0,0.69467042]
[1727743960869,0.47099,63642.0,63641.0,1.75909062]
[1727743961107,0.31386,63642.0,63641.0,2.06939062]
[1727743961572,0.31386,63642.0,63641.0,2.11621631]
[1727743961808,0.219582,63642.0,63641.0,2.04149546]
[1727743962032,0.1328158,63642.0,63641.0,2.10220326]
[1727743962258,0.1328158,63642.0,63641.0,2.06949448]
[1727743962757,0.1328158,63642.0,63641.0,1.97494448]
[1727743963007,0.1013898,63642.0,63641.0,2.02164125]
[1727743963234,0.1013898,63642.0,63641.0,1.97494448]
[1727743963455,8e-07,63642.0,63641.0,2.0216417]
[1727743963687,0.23646438,63656.0,63655.0,0.367906]
[1727743963963,0.23646438,63656.0,63655.0,0.5473638]
[1727743964176,0.000821,63664.0,63662.0,0.311589]
[1727743964417,0.000821,63664.0,63662.0,0.4680468]
[1727743964631,0.000821,63664.0,63663.0,0.311587]
[1727743964843,0.000821,63664.0,63663.0,0.47655617]
[1727743965080,0.000821,63664.0,63663.0,0.47341491]
[1727743966141,0.000821,63664.0,63663.0,0.48441491]
[1727743967808,0.000821,63664.0,63663.0,0.50807874]
[1727743968495,0.000821,63664.0,63663.0,0.49907874]
[1727743968929,0.000821,63664.0,63663.0,0.48807874]
[1727743969144,0.000821,63664.0,63663.0,0.49907874]
[1727743969355,0.000821,63664.0,63663.0,0.50807874]
[1727743969849,0.000821,63664.0,63663.0,0.49707874]
[1727743970395,0.000821,63664.0,63663.0,0.50807874]
[1727743970628,0.000821,63664.0,63663.0,0.48807874]
[1727743970879,0.000821,63664.0,63663.0,0.51007874]
[1727743971609,0.000821,63664.0,63663.0,0.50107874]
[1727743971855,0.000821,63664.0,63663.0,0.51507874]
[1727743972365,0.000821,63664.0,63663.0,0.50107874]
[1727743972595,0.000821,63664.0,63663.0,0.48807874]
[1727743972836,0.000821,63664.0,63663.0,0.50207874]
[1727743973077,0.000821,63664.0,63663.0,0.48807874]
[1727743973583,0.000821,63664.0,63663.0,0.46441491]
[1727743973855,0.000821,63664.0,63663.0,0.47841491]
[1727743974130,0.000821,63664.0,63663.0,0.46441491]
[1727743974599,0.000821,63664.0,63663.0,0.47841491]
[1727743975067,0.000821,63664.0,63663.0,0.26182791]
[1727743975427,0.000821,63664.0,63663.0,0.42790491]
[1727743975676,0.000821,63664.0,63663.0,0.42290491]
[1727743976155,0.000821,63664.0,63663.0,0.43390491]
[1727743976407,0.000821,63664.0,63663.0,0.42290491]
[1727743976655,0.000821,63664.0,63663.0,0.41890491]
[1727743977180,0.000821,63664.0,63663.0,0.45441491]
[1727743977387,0.000821,63664.0,63663.0,0.73260123]
[1727743977613,0.000821,63664.0,63663.0,0.72860123]
[1727743977830,0.000821,63664.0,63663.0,0.48741491]
[1727743978273,0.000821,63664.0,63663.0,0.50503719]
[1727743978521,0.000821,63664.0,63663.0,0.47841491]
[1727743978702,0.000821,63664.0,63663.0,0.48541491]
[1727743978935,0.000821,63664.0,63663.0,0.50303719]
[1727743979160,0.23228538,63670.0,63669.0,0.257062]
[1727743979388,0.23228538,63670.0,63669.0,0.4135198]
[1727743979597,0.23646438,63677.0,63676.0,0.257045]
[1727743979811,0.23646438,63677.0,63676.0,0.4135028]
[1727743980038,0.0805,63678.0,63677.0,0.157042]
[1727743980294,0.0805,63678.0,63677.0,0.31886519]
[1727743983038,0.0825,63678.0,63677.0,0.16282319]
[1727743983276,0.0845,63678.0,63677.0,0.16382319]
[1727743983476,0.24154,63678.0,63677.0,0.16382319]
[1727743985278,0.24154,63678.0,63677.0,0.00736539]
[1727743985796,0.24154,63678.0,63677.0,0.002]
[1727743986053,0.71266,63678.0,63677.0,0.002]
[1727743988962,0.80986,63678.0,63677.0,0.002]
[1727743989456,0.077,63674.0,63664.0,0.0495734]
[1727743989695,0.47112,63673.0,63670.0,0.23646438]
[1727743989960,0.471163,63672.0,63671.0,0.1564578]
[1727743990198,0.37112,63672.0,63671.0,0.16181846]
[1727743990429,0.528174,63672.0,63671.0,0.16181846]
[1727743990698,0.528174,63672.0,63671.0,0.1564578]
[1727743991399,0.528174,63672.0,63671.0,0.1604578]
[1727743992392,0.528174,63672.0,63671.0,0.004]
[1727743992632,0.528174,63672.0,63670.0,0.001644]
[1727743992633,0.157057,63671.0,63670.0,0.001644]
[1727743992867,0.703977,63671.0,63670.0,0.001644]
[1727743993100,0.705977,63671.0,63670.0,0.001644]
[1727743993366,0.708977,63671.0,63670.0,0.001644]
[1727743993878,0.75796382,63671.0,63670.0,0.001644]
[1727743994131,0.710977,63671.0,63670.0,0.001644]
[1727743994380,0.712977,63671.0,63670.0,0.001644]
[1727743994616,0.714977,63671.0,63670.0,0.002644]
[1727743994871,0.712977,63671.0,63670.0,0.002644]
[1727743995642,0.714977,63671.0,63670.0,0.002644]
[1727743995891,0.710977,63671.0,63670.0,0.001644]
[1727743996155,0.710977,63671.0,63670.0,0.002644]
[1727743996911,0.714977,63671.0,63670.0,0.003644]
[1727743997163,0.76202205,63671.0,63670.0,0.003644]
[1727743997675,0.714977,63671.0,63670.0,0.003644]
[1727743999388,0.76202834,63671.0,63670.0,0.003644]
[1727743999596,0.76202994,63671.0,63670.0,0.003644]
[1727743999809,0.714977,63671.0,63670.0,0.003644]
[1727744000461,0.8090671,63671.0,63670.0,0.003644]
[1727744000897,0.714977,63671.0,63670.0,0.003644]
[1727744001353,0.724977,63671.0,63670.0,0.003644]
[1727744001620,0.8190671,63671.0,63670.0,0.003644]
[1727744002395,0.724977,63671.0,63670.0,0.003644]
[1727744003933,0.79553702,63671.0,63670.0,0.003644]
[1727744004145,0.82015242,63671.0,63670.0,0.003644]
[1727744004352,0.7495924,63671.0,63670.0,0.003644]
[1727744005440,0.79662326,63671.0,63670.0,0.003644]
[1727744005687,0.7495924,63671.0,63670.0,0.003644]
[1727744007048,0.79661865,63671.0,63670.0,0.003644]
[1727744007690,0.7495924,63671.0,63670.0,0.003644]
[1727744007906,0.79661423,63671.0,63670.0,0.003644]
[1727744008345,0.7495924,63671.0,63670.0,0.003644]
[1727744008560,0.79661423,63671.0,63670.0,0.003644]
[1727744009010,0.82015242,63671.0,63670.0,0.003644]
[1727744009213,0.79660754,63671.0,63670.0,0.003644]
[1727744009449,0.7495924,63671.0,63670.0,0.003644]
[1727744009664,0.79660772,63671.0,63670.0,0.003644]
[1727744010829,0.7495924,63671.0,63670.0,0.003644]
[1727744011932,0.7445924,63671.0,63670.0,0.003644]
[1727744012381,0.79160325,63671.0,63670.0,0.003644]
[1727744012609,0.7445924,63671.0,63670.0,0.003644]
[1727744012876,1.28308309,63671.0,63670.0,0.003644]
[1727744013186,0.49470871,63659.0,63658.0,0.0495856]
[1727744013674,0.49470871,63659.0,63654.0,0.23646438]
[1727744013675,0.162096,63655.0,63654.0,0.23646438]
[1727744013922,0.69723871,63655.0,63654.0,0.23646438]
[1727744014193,0.157114,63648.0,63646.0,0.0498619]
[1727744014486,0.69225671,63648.0,63646.0,0.0498619]
[1727744014697,0.69225671,63648.0,63647.0,0.0053095]
[1727744014954,0.157126,63643.0,63641.0,0.001642]
[1727744015195,0.69226871,63643.0,63641.0,0.001642]
[1727744017154,0.84871549,63643.0,63641.0,0.001642]
[1727744017624,0.69226871,63643.0,63641.0,0.001642]
[1727744017879,0.69526871,63643.0,63641.0,0.001642]
[1727744018347,0.69426871,63643.0,63641.0,0.001642]
[1727744018565,0.69526871,63643.0,63641.0,0.001642]
[1727744019683,0.70226871,63643.0,63641.0,0.001642]
[1727744020564,0.70026871,63643.0,63641.0,0.001642]
[1727744021069,0.70926871,63643.0,63642.0,0.002646]
[1727744021542,0.70826871,63643.0,63642.0,0.002646]
[1727744021766,0.73289306,63643.0,63642.0,0.002646]
[1727744023385,0.74189306,63643.0,63642.0,0.003646]
[1727744023840,0.73989306,63643.0,63642.0,0.003646]
[1727744024278,0.74189306,63643.0,63642.0,0.003646]
[1727744027724,0.73989306,63643.0,63642.0,0.003646]
[1727744028318,0.73489306,63643.0,63642.0,0.003646]
[1727744028740,0.71026871,63643.0,63642.0,0.003646]
[1727744028965,0.77251731,63643.0,63642.0,0.003646]
[1727744029698,0.71526871,63643.0,63642.0,0.003646]
[1727744029903,0.71726871,63643.0,63642.0,0.003646]
[1727744030119,0.72726871,63643.0,63642.0,0.003646]
[1727744032079,0.174128,63642.0,63641.0,0.001642]
[1727744032288,0.627248,63642.0,63641.0,0.001642]
[1727744032739,0.94015258,63642.0,63641.0,0.001642]
[1727744033108,0.164148,63634.0,63633.0,0.001642]
[1727744033312,0.69929071,63634.0,63633.0,0.001642]
[1727744033486,0.69929071,63634.0,63633.0,0.00702021]
[1727744033704,0.69729071,63634.0,63633.0,0.001642]
[1727744033920,0.69929071,63634.0,63633.0,0.001642]
[1727744035618,0.71729071,63634.0,63633.0,0.001642]
[1727744036087,0.74191925,63634.0,63633.0,0.001642]
[1727744036913,0.85184921,63634.0,63633.0,0.001642]
[1727744037151,0.15918,63621.0,63620.0,0.0491926]
[1727744037439,0.69432271,63621.0,63620.0,0.0491926]
[1727744037662,0.53514271,63621.0,63615.0,0.001642]
[1727744037882,0.32121571,63616.0,63615.0,0.001642]
[1727744038104,0.69233571,63616.0,63615.0,0.001642]
[1727744038978,0.69533571,63616.0,63615.0,0.001642]
[1727744040774,0.69833571,63616.0,63615.0,0.001642]
[1727744041013,0.69733571,63616.0,63615.0,0.001642]
[1727744041268,0.72197066,63616.0,63615.0,0.001642]
[1727744041488,0.72497066,63616.0,63615.0,0.001642]
[1727744042176,0.83173196,63616.0,63615.0,0.001642]
[1727744042399,0.81009701,63616.0,63615.0,0.001642]
[1727744043065,0.81509701,63616.0,63615.0,0.001642]
[1727744043300,0.89709701,63616.0,63615.0,0.001642]
[1727744044015,0.89409701,63616.0,63615.0,0.001642]
[1727744044249,0.88909701,63616.0,63615.0,0.001642]
[1727744044475,0.79333571,63616.0,63615.0,0.001642]
[1727744044701,0.81797178,63616.0,63615.0,0.001642]
[1727744045194,0.81897178,63616.0,63615.0,0.001642]
[1727744045660,0.81697178,63616.0,63615.0,0.001642]
[1727744046122,0.82897178,63616.0,63615.0,0.001642]
[1727744046842,0.93112279,63616.0,63615.0,0.001642]
[1727744047285,0.82697178,63616.0,63615.0,0.001642]
[1727744048167,0.80433571,63616.0,63615.0,0.001642]
[1727744049086,0.80233571,63616.0,63615.0,0.001642]
[1727744049309,0.71533571,63616.0,63615.0,0.001642]
[1727744050204,0.55814271,63616.0,63604.0,0.13975038]
[1727744050444,0.157213,63608.0,63605.0,0.00548437]
[1727744050668,0.28852,63607.0,63606.0,0.3136748]
[1727744050900,0.28852,63607.0,63606.0,0.3506679]
[1727744052249,0.28952,63607.0,63606.0,0.3526679]
[1727744052946,0.28852,63607.0,63606.0,0.3506679]
[1727744053167,0.28952,63607.0,63606.0,0.3526679]
[1727744053600,0.28952,63607.0,63606.0,0.4305679]
[1727744054339,0.29052,63607.0,63606.0,0.4345679]
[1727744054762,0.28852,63607.0,63606.0,0.4285679]
[1727744054976,0.28952,63607.0,63606.0,0.4325679]
[1727744055236,0.29052,63607.0,63606.0,0.4345679]
[1727744055872,0.31515446,63607.0,63606.0,0.4345679]
[1727744057174,0.31515446,63607.0,63606.0,0.2773509]
[1727744057401,0.47917717,63607.0,63606.0,0.0429931]
[1727744057637,0.76862181,63607.0,63606.0,0.006]
[1727744058076,0.63639217,63607.0,63606.0,0.006]
[1727744058307,0.157227,63602.0,63601.0,0.001642]
[1727744058522,0.60976971,63602.0,63601.0,0.001642]
[1727744061347,0.63540835,63602.0,63601.0,0.004642]
[1727744061617,0.63540835,63602.0,63601.0,0.003642]
[1727744061840,0.63540835,63602.0,63601.0,0.004642]
[1727744062060,0.63440835,63602.0,63601.0,0.002642]
[1727744062281,0.60976971,63602.0,63601.0,0.002642]
[1727744062716,0.60976971,63602.0,63601.0,0.001642]
[1727744062972,0.60976971,63602.0,63601.0,0.002642]
[1727744063181,0.60976971,63602.0,63601.0,0.003642]
[1727744064242,0.60976971,63602.0,63601.0,0.002642]
[1727744064457,0.60976971,63602.0,63601.0,0.004642]
[1727744073554,0.60976971,63602.0,63601.0,0.003642]
[1727744073758,0.60976971,63602.0,63601.0,0.001642]
[1727744073964,0.28852,63602.0,63601.0,0.002642]
[1727744074201,0.28852,63602.0,63601.0,0.1590998]
[1727744074415,0.28852,63602.0,63601.0,0.16434986]
[1727744074647,0.28852,63602.0,63601.0,0.16534986]
[1727744074859,0.28852,63602.0,63601.0,0.16434986]
[1727744075083,0.28852,63602.0,63601.0,0.32157986]
[1727744075300,0.28952,63602.0,63601.0,0.16734986]
[1727744077027,0.28952,63602.0,63601.0,0.16934986]
[1727744078081,0.28952,63602.0,63601.0,0.42277986]
[1727744078358,0.28952,63602.0,63601.0,0.44577986]
[1727744080744,0.45354271,63602.0,63601.0,0.16934986]
[1727744081427,0.28952,63602.0,63601.0,0.16934986]
[1727744083261,0.28952,63602.0,63601.0,0.34957986]
[1727744083488,0.28952,63602.0,63601.0,0.42497986]
[1727744088221,0.28952,63602.0,63601.0,0.45648986]
[1727744089070,0.28852,63602.0,63601.0,0.45348986]
[1727744089506,0.28952,63602.0,63601.0,0.45648986]
[1727744089949,0.28952,63602.0,63601.0,0.38108986]
[1727744090399,0.28952,63602.0,63601.0,0.37908986]
[1727744090822,0.29052,63602.0,63601.0,0.38408986]
[1727744091128,0.29052,63602.0,63601.0,0.48408986]
[1727744091304,0.28852,63602.0,63601.0,0.69117989]
[1727744091531,0.28852,63602.0,63601.0,0.95002201]
[1727744091532,0.28952,63602.0,63601.0,0.95002201]
[1727744091748,0.29052,63602.0,63601.0,0.9060026]
[1727744091964,0.29052,63602.0,63601.0,1.00198267]
[1727744092430,0.29052,63602.0,63601.0,0.6706555]
[1727744092431,0.18952,63602.0,63601.0,0.6706555]
[1727744092667,0.18852,63602.0,63601.0,0.97311475]
[1727744092890,0.19052,63602.0,63601.0,0.91671469]
[1727744093134,0.19052,63602.0,63601.0,0.98709485]
[1727744093361,0.19052,63602.0,63601.0,0.98509485]
[1727744093584,0.18952,63602.0,63601.0,0.68823862]
[1727744093825,0.19052,63602.0,63601.0,0.70223862]
[1727744094046,0.18952,63602.0,63601.0,0.73714548]
[1727744094268,0.19052,63602.0,63601.0,0.75114548]
[1727744094481,0.18952,63602.0,63601.0,0.72314548]
[1727744094906,0.18952,63602.0,63601.0,0.73914548]
[1727744095131,0.18852,63602.0,63601.0,0.72514548]
[1727744095350,0.18852,63602.0,63601.0,0.73914548]
[1727744095569,0.18852,63602.0,63601.0,0.69223862]
[1727744095779,0.18952,63602.0,63601.0,0.69223862]
[1727744095991,0.18952,63602.0,63601.0,0.70623862]
[1727744096211,0.18952,63602.0,63601.0,0.70423862]
[1727744096444,0.18852,63602.0,63601.0,0.69023862]
[1727744096677,0.18952,63602.0,63601.0,0.70423862]
[1727744096899,0.18952,63602.0,63601.0,0.70623862]
[1727744097120,0.18852,63602.0,63601.0,0.72514548]
[1727744097341,0.18952,63602.0,63601.0,0.69223862]
[1727744097607,0.19052,63602.0,63601.0,0.70623862]
[1727744097818,0.18952,63602.0,63601.0,0.69223862]
[1727744098269,0.19052,63602.0,63601.0,0.70623862]
[1727744098755,0.18952,63602.0,63601.0,0.69223862]
[1727744098984,0.126628,63602.0,63601.0,0.98887748]
[1727744099217,0.127628,63602.0,63601.0,1.60785266]
[1727744099415,0.127628,63602.0,63601.0,1.81907729]
[1727744099718,0.127628,63602.0,63601.0,1.74859878]
[1727744100382,0.127628,63602.0,63601.0,2.05297578]
[1727744100838,0.027628,63602.0,63601.0,2.14752578]
[1727744101064,0.000823,63608.0,63607.0,0.761725]
[1727744101340,0.000823,63608.0,63607.0,1.08220551]
[1727744101567,0.000823,63608.0,63607.0,2.22336558]
[1727744102243,0.000823,63608.0,63607.0,2.29646558]
[1727744102454,0.000823,63608.0,63607.0,2.31046558]
[1727744102455,0.001823,63608.0,63607.0,2.31046558]
[1727744102699,0.23646438,63619.0,63618.0,0.737298]
[1727744102916,0.23646438,63619.0,63618.0,1.89643679]
[1727744103127,0.23646438,63619.0,63618.0,1.90407348]
[1727744103369,0.0928,63637.0,63625.0,0.28868]
[1727744103585,0.0928,63637.0,63625.0,0.47690376]
[1727744103843,0.0928,63637.0,63632.0,0.188663]
[1727744104065,0.0829,63640.0,63636.0,0.157143]
[1727744104305,0.099,63643.0,63640.0,0.157133]
[1727744104535,0.099,63643.0,63640.0,0.3135908]
[1727744104752,0.099,63643.0,63642.0,0.157128]
[1727744104973,0.099,63643.0,63642.0,0.3135858]
[1727744105202,0.099,63643.0,63642.0,0.31918534]
[1727744105859,0.099,63643.0,63642.0,0.32218534]
[1727744106318,0.099,63643.0,63642.0,0.32418534]
[1727744106538,0.0925,63650.0,63642.0,0.16705734]
[1727744106771,0.0925,63650.0,63649.0,0.188621]
[1727744107024,0.0925,63650.0,63649.0,0.2171722]
[1727744107306,0.02462154,63654.0,63653.0,0.211611]
[1727744107528,0.0987,63658.0,63657.0,0.157091]
[1727744107758,0.314089,63677.0,63662.0,0.211589]
[1727744107759,0.1764,63665.0,63662.0,0.211589]
[1727744108015,0.1764,63665.0,63662.0,0.05451]
[1727744108253,0.1764,63665.0,63662.0,0.21649038]
[1727744108496,0.1764,63665.0,63663.0,0.1879678]
[1727744109020,0.1764,63665.0,63664.0,0.00551983]
[1727744109250,0.1764,63665.0,63664.0,0.16197763]
[1727744109499,0.333472,63665.0,63664.0,0.16197763]
[1727744109958,0.333472,63665.0,63664.0,0.1564578]
[1727744111655,0.333472,63665.0,63664.0,0.1604578]
[1727744111865,0.334295,63665.0,63664.0,0.1564578]
[1727744112972,0.805515,63665.0,63664.0,0.1564578]
[1727744115141,0.83012996,63665.0,63664.0,0.1564578]
[1727744116514,0.157104,63652.0,63651.0,0.03151]
[1727744116786,0.157106,63651.0,63650.0,0.0491805]
[1727744117029,0.314218,63650.0,63645.0,0.1]
[1727744117245,0.157114,63648.0,63644.0,0.157122]
[1727744117456,0.55142,63647.0,63645.0,0.03151]
[1727744117684,0.16402271,63646.0,63642.0,0.03151]
[1727744117917,0.282589,63645.0,63641.0,0.31426]
[1727744118123,0.282589,63645.0,63644.0,0.157124]
[1727744118542,0.282589,63645.0,63644.0,0.202634]
[1727744118750,0.282589,63645.0,63644.0,0.188634]
[1727744119840,0.282589,63645.0,63644.0,0.3450918]
[1727744120045,0.282589,63645.0,63644.0,0.3770918]
[1727744120260,0.282589,63645.0,63644.0,0.2199678]
[1727744120493,0.282589,63645.0,63644.0,0.1969678]
[1727744120940,0.282589,63645.0,63644.0,0.1879678]
[1727744121373,0.282589,63645.0,63644.0,0.1989678]
[1727744121584,0.282589,63645.0,63644.0,0.1879678]
[1727744122011,0.282589,63645.0,63644.0,0.1989678]
[1727744122223,0.282589,63645.0,63644.0,0.2089678]
[1727744122681,0.43971,63645.0,63644.0,0.1674578]
[1727744122888,0.282589,63645.0,63644.0,0.1764578]
[1727744123220,0.43971,63645.0,63644.0,0.1764578]
[1727744123975,0.76137511,63645.0,63644.0,0.021644]
[1727744124192,0.61451,63645.0,63644.0,0.021644]
[1727744125085,0.61451,63645.0,63644.0,0.012644]
[1727744125306,0.61451,63645.0,63644.0,0.001644]
[1727744125541,0.61851,63645.0,63644.0,0.001644]
[1727744125985,0.61551,63645.0,63644.0,0.001644]
[1727744126405,0.61851,63645.0,63644.0,0.001644]
[1727744128401,0.61451,63645.0,63644.0,0.001644]
[1727744128612,0.61651,63645.0,63644.0,0.001644]
[1727744128825,0.61851,63645.0,63644.0,0.001644]
[1727744131234,0.61451,63645.0,63644.0,0.001644]
[1727744131450,0.61751,63645.0,63644.0,0.001644]
[1727744131667,0.61951,63645.0,63644.0,0.001644]
[1727744131875,0.61451,63645.0,63644.0,0.001644]
[1727744132087,0.61651,63645.0,63644.0,0.001644]
[1727744132316,0.61951,63645.0,63644.0,0.001644]
[1727744132731,0.61651,63645.0,63644.0,0.001644]
[1727744132935,0.61451,63645.0,63644.0,0.001644]
[1727744133178,0.61751,63645.0,63644.0,0.001644]
[1727744134229,0.61551,63645.0,63644.0,0.001644]
[1727744134642,0.61751,63645.0,63644.0,0.001644]
[1727744137539,0.618332,63645.0,63644.0,0.001644]
[1727744137951,0.615332,63645.0,63644.0,0.001644]
[1727744138165,0.617332,63645.0,63644.0,0.001644]
[1727744138385,0.618332,63645.0,63644.0,0.001644]
[1727744138866,0.615332,63645.0,63644.0,0.001644]
[1727744139077,0.461211,63645.0,63644.0,0.1581018]
[1727744139299,0.285411,63645.0,63644.0,0.3152258]
[1727744139513,0.283411,63645.0,63644.0,0.3467358]
[1727744139724,0.283411,63645.0,63644.0,0.35229455]
[1727744140858,0.284411,63645.0,63644.0,0.19517055]
[1727744141093,0.284411,63645.0,63644.0,0.35229455]
[1727744141349,0.284411,63645.0,63644.0,0.35429455]
[1727744141572,0.283411,63645.0,63644.0,0.37529455]
[1727744141820,0.283411,63645.0,63644.0,0.48429455]
[1727744142034,0.283411,63645.0,63644.0,0.74011726]
[1727744142775,0.283411,63645.0,63644.0,0.72011726]
[1727744143646,0.283411,63645.0,63644.0,0.73692162]
[1727744144100,0.283411,63645.0,63644.0,0.7687986]
[1727744144522,0.283411,63645.0,63644.0,0.74092162]
[1727744144732,0.283411,63645.0,63644.0,0.73692162]
[1727744144938,0.283411,63645.0,63644.0,1.60503248]
[1727744145174,0.283411,63645.0,63644.0,1.60003248]
[1727744145388,0.283411,63645.0,63644.0,1.58543935]
[1727744145596,0.283411,63645.0,63644.0,1.61331633]
[1727744146025,0.283411,63645.0,63644.0,1.85116633]
[1727744146250,0.283411,63645.0,63644.0,1.95690394]
[1727744146441,0.19609831,63645.0,63644.0,2.33716633]
[1727744146654,0.19609831,63645.0,63644.0,2.40714271]
[1727744146866,0.19609831,63645.0,63644.0,2.61371639]
[1727744147078,0.19609831,63645.0,63644.0,2.52974342]
[1727744147521,0.19609831,63645.0,63644.0,2.59954253]
[1727744147736,0.17634826,63645.0,63644.0,2.37984212]
[1727744147952,0.17634826,63645.0,63644.0,2.63679418]
[1727744148170,0.17634826,63645.0,63644.0,2.65079418]
[1727744148394,0.17634826,63645.0,63644.0,2.63677957]
[1727744148607,0.17634826,63645.0,63644.0,2.62277957]
[1727744148887,0.17634826,63645.0,63644.0,2.65077957]
[1727744149138,0.17634826,63645.0,63644.0,2.63677957]
[1727744149350,0.17634826,63645.0,63644.0,2.51325333]
[1727744149562,0.17634826,63645.0,63644.0,2.5831116]
[1727744149764,0.17634826,63645.0,63644.0,2.37682678]
[1727744150217,0.17634826,63645.0,63644.0,2.29287105]
[1727744150424,0.17634826,63645.0,63644.0,2.35351072]
[1727744150633,0.17634826,63645.0,63644.0,2.2657665]
[1727744150842,0.17634826,63645.0,63644.0,2.29362046]
[1727744151054,0.17634826,63645.0,63644.0,2.28882302]
[1727744151268,0.17634826,63645.0,63644.0,1.56238706]
[1727744151492,0.17634826,63645.0,63644.0,1.58218781]
[1727744151707,0.17634826,63645.0,63644.0,1.56818781]
[1727744152129,0.17634826,63645.0,63644.0,1.58218781]
[1727744152789,0.17634826,63645.0,63644.0,1.60318781]
[1727744152997,0.17634826,63645.0,63644.0,1.5841555]
[1727744153624,0.17634826,63645.0,63644.0,1.42013279]
[1727744153845,0.17634826,63645.0,63644.0,1.33933279]
[1727744154263,0.17634826,63645.0,63644.0,1.33433279]
[1727744154680,0.17634826,63645.0,63644.0,1.21133279]